{"text_format":"3","workbook":"xlsx","n_sheets":1,"sheets":["Unpriced Consolidated BoQ"],"not_rendered":{"external_links":7,"defined_names":396},"read":"whole","date_system":"1900"}

{"sheet":"Unpriced Consolidated BoQ","index":0,"n_rows":267,"n_cols":13,"rows_kept":267,"merged":[[245,11,245,12],[247,11,247,12],[249,11,249,12],[251,11,251,12],[254,11,254,12]]}
["ESKOM ROTEK INDUSTRIES - CONSTRUCTION SERVICES - POWERLINES DIVISION"]
["The Contractor is referred to the full intent and meaning of each clause or item herein.  He shall allow opposite each clause or item, whatever payments he may consider necessary, to carry out and observance of same."]
["ESKOM ROTEK INDUSTRIES - CONSTRUCTION SERVICES - POWERLINES DIVISION"]
[]
["PREAMBLES"]
[]
[1,"The Tenderer is advised to read and understand all aspects and documentation associated with this Enquiry BEFORE inserting his Prices and or Rates and or Amounts. "]
[]
[2,"The bill of quantities provides the basis of all  valuations of the work and general progress monitoring. "]
[]
[3,"The amount due at each application for payment is based  as measured in terms of the bill of quantities. The Contractor provides all  necessary  information which is required to determine amounts due at each application for payment relative to the completed works."]
[]
[4,"The total of the prices includes for all direct and indirect costs, overheads, profits, on costs, risks, liabilities, obligations, etc. relative to the contract."]
[]
[5,"All values are total values prior to any retention and excludes VAT. Retention is not calculated in the  forecast rate of payment Bill (FRP). "]
[]
[6,"Tenderer to check and take responsibility for all descriptions, formulae and structure of this file."]
[]
["A","Free issue of Material by the Employer "]
[]
[1,"Tenderers are advised that the Employer may provide certain Free Issue Materials and or Components and or Plant and or Equipment to the Contractor at no cost to the Contractor. The Contractor shall price for the taking delivery, protection,  inspection, testing, storing "]
[null,"as required and installation complete as more fully described within this Enquiry Documentation."]
[]
["B","GUIDANCE BEFORE PRICING AND MEASURING "]
[]
[1,"The NEC's approach to the Preliminary & General (P&G) section of the bill of quantities assumes use will be made of method related charges for project applied to providing the works based on durations shown in the Accepted Programme. Fixed charges for the use "]
[null,"of Equipment that are required throughout the construction phase, time related charges for people working in a managerial and supervisory capacity for the period required, and lump sum charges for other facilities or services not directly related to performing work "]
[null,"items typically included in other parts of the bill of quantities."]
[]
[2,"The P&G section of the bill of quantities is not used for the assessment of compensation events but can however be used as a guide."]
[]
["C","METHOD OF MEASUREMENT "]
[]
[1,"The bill of quantities comprises a list of work items and quantities, based on standard methods of measurement, which are either published or stated herein and state the items to be included and how quantities are to be calculated and the items and activities that are "]
[null,"deemed to be included within the Rates and Prices inserted by the Tenderer."]
[]
[2,"Tenderers shall price the items, taking account all of the information within and associated with the tender documents and shall include for all matters, which are at the Contractors risk."]
[]
[3,"All enquiry documents supplied must be considered for pricing the items in the Bills of Quantities for the completion of the works."]
[]
[4,"Unless otherwise stated, items are measured net in accordance with the contract drawings, and no allowance has been made for waste or bulking or compaction or evaporation or loss by any means whatsoever."]
[]
[5,"The quantities contained in the bill of quantities are provisional shall not be used for ordering purposes. No claims whatsoever, however arising will be entertained, should the bill of quantities have been used for ordering and or procurement purposes. "]
[]
["D","RATES AND PRICES"]
[]
[1,"Rates and Prices shall be expressed to two decimal places (i.e. cents) except in the case of a NIL rate or price."]
[]
[2,"The Tenderers Rates and Prices shall be inserted in the bill of quantities are deemed to be the fully inclusive Rates and Prices to the Employer for the work described under the several items. Such Rates and Prices shall cover all costs and expenses that may be required "]
[null,"in, and for the prompt and efficient and safe execution of the work described, and shall cover the cost of all general risks, liabilities and obligations set  forth or implied in this Enquiry document."]
[]
[3,"Rates and Prices for items which are required to be inserted in the bill of quantities by the Tenderer and which have not been duly inserted, are deemed to be covered by other Rates and Prices in the bill of quantities. "]
[]
[4,"The Tenderers omission to insert Rates and Prices shall not be deemed to be a qualified exclusion to execute such work, activity or responsibility."]
[]
[5,"The Rates and Prices are deemed to include (unless otherwise specifically stated in the bill of quantities or herein) all the relevant costs associated with the Clauses of Contract as amended and shall include but not be limited to the following cost components:"]
[]
[6,"The Tenderer is deemed to have obtained all the necessary information required to adequately price the scope of work associated with this Enquiry and no claim shall be considered resulting from lack of knowledge in this respect."]
[]
[]
[{"$nulls":5},"Rates"]
["Item","Description   ",null,"Unit","Qty","Fixed","Time Related","Value Related","Total"]
[{"$nulls":4},"(1)","(2)","(3)","(4)","(1)x(2) OR (2)+(3)+(4)"]
[]
[1,"Bill No. 1 - Preliminary and General"]
["The Contractor is referred to the full intent and meaning of each clause or item herein.  He shall allow opposite each clause or item, whatever payments he may consider necessary, to carry out and observance of same."]
["The Contractor shall price Bill No. 1 - Preliminary and General in respect of all payment required for any work, risk, contingency or obligation whatsoever, that is not described in the Bill of Quantities and which is his responsibility under the Contract."]
[1.1,"WORKS INFORMATION"]
["1.1.1","Programme ; Contractors Insurance ; Performance Bond ; Drawings & Specifications",null,"sum",{"$f":"'[7]P&G''s'!D8","v":1},{"$nulls":3},{"$f":"SUM(F69:H69)*E69","v":0}]
[1.2,"SITE COSTS AND OVERHEADS"]
["1.2.1","Establish staff accommodation and site camp, including sanitation as per OHS ACT's requirements and remove on completion.",null,"sum",{"$f":"'[7]P&G''s'!D10","v":36},{"$nulls":3},{"$f":"SUM(F71:H71)*E71","v":0}]
[1.3,"ADDITIONAL & MISCELLANEOUS COSTS"]
["1.3.1","Contractor to specify here any costs foreseen not made provision for.",null,"PSUM",{"$f":"'[7]P&G''s'!D12","v":1},{"$nulls":3},{"$f":"SUM(F73:H73)*E73","v":0}]
[]
[{"$nulls":5},"Carried forward to Bill No.7- SUMMARY",null,null,{"$f":"SUM(I69:I73)","v":0}]
[]
[{"$nulls":5},"Rates"]
["Item","Description",null,"Unit","Qty","Fixed","Time Related","Value Related","Total Price"]
[{"$nulls":4},"(1)","(2)","(3)","(4)","(1)x(2) OR (1)x(3) OR (2)+(3)+(4)"]
[{"v":2,"d":"2.0"},"SAFETY MANAGEMENT"]
["2.1","Supply of all items of Personal Protective Clothing/Equipment & ensure use thereof for full compliance"]
["2.1.1","Appropriate protective clothing as per Eskom SHE specification (earplugs etc).",null,"sum",{"$f":"[7]SHE!D7","v":1},{"$f":"[7]SHE!E7","v":0},null,null,{"$f":"SUM(F82:H82)","v":0}]
[2.2,"Supply and provision of Equipment for working at Heights & ensure use thereof for full compliance to OHS ACT and Eskom's SHE spec"]
["2.2.1","Fall protection equipment incl but not limited to Safety Harness(double lanyard), ropes, pulleys etc. ; Evaluation of physical and psychological fitness of personnel working at heights (on a basis of as and when required during execution of the works). Qualified fall protection planner",null,"sum",{"$f":"[7]SHE!D9","v":1},{"$nulls":3},{"$f":"SUM(F84:H84)","v":0}]
[2.3,"Barricading"]
[null,"Supply & install, including removal upon completion to ensure full compliance to legislation:"]
["2.3.1"," Barricade  to secure the drop zone ",null,"sum",{"$f":"[7]SHE!D12","v":1},{"$nulls":3},{"$f":"SUM(F87:H87)","v":0}]
[2.4,"SHEQ"]
[null,"Recording & availability of SHE & Q File"]
["2.4.1","Compile SHE and Quality plan and file.",null,"sum",{"$f":"[7]SHE!D15","v":1},{"$nulls":3},{"$f":"SUM(F90:H90)","v":0}]
[2.5,"Transport"]
["2.5.1","Transportation of employees in compliance with the SHE specification and the procedures outlined on the contract (First preferance usage of local taxi association).",null,"sum",{"$f":"[7]SHE!D17","v":1},{"$nulls":3},{"$f":"SUM(F92:H92)","v":0}]
[2.6,"Compliance"]
["2.6.1","Full Compliance with latest revision of OHS act.",null,"sum",{"$f":"[7]SHE!D19","v":1},{"$nulls":3},{"$f":"SUM(F94:H94)","v":0}]
[{"v":2.7,"d":"2.70"},"SHEQ Appointment"]
["2.7.1","Appointment of a registered SHEQ OFFICER FULL TIME ON SITE Costs associated with the appointment of Safety personel and actual time spent on implementation, managing, documenting, monitoring, reviewing, internal  and external audits, incident investigations and mitigating safety related impacts.",null,"sum",{"$f":"[7]SHE!D21","v":1},{"$nulls":3},0]
["2.7.2","Appointment of a registered Construction Manager FULL TIME ON SITE.",null,"sum",{"$f":"[7]SHE!D22","v":1},{"$nulls":3},{"$f":"SUM(F97:H97)","v":0}]
[{"$nulls":5},"Carried forward to Bill No.7- SUMMARY",null,null,{"$f":"SUM(I82:I97)","v":0}]
[]
[]
["BILL No. 4 - ASSEMBLY AND ERECTION OF TOWERS"]
[{"$nulls":6},"RATES"]
["ITEM","DESCRIPTION","MASS inc. FASTENERS and GALVANISING ","U2","UNIT","QUANTITY","MANUFACTURE AND SUPPLY OF TOWERS incl.  FITTINGS","MANUFACTURE AND SUPPLY OF CROSS, SPACER AND GUY ROPES","PLANT","ASSEMBLY "," ERECTION","RATE TOTAL","TOTAL AMOUNT"]
[{"$nulls":5},"(1)","(2)","(3)","(4)","(5)","(6)","(7) (5+6)","(1)*(7)"]
[4.1,"Self Supporting Angle Strain 0° Terminal - All Types"]
["4.1.1","Body and superstructure",23457.8,"kg","No.",{"$f":"[7]Towers!F7","v":11},{"$nulls":6},{"$f":"F106*L106","v":0}]
["4.1.2","6m body extension ",5830.1,"kg","No.",{"$f":"[7]Towers!F8","v":11},{"$nulls":6},{"$f":"F107*L107","v":0}]
["4.1.3","3.0m leg",734,"kg","No.",{"$f":"[7]Towers!F9","v":11},{"$nulls":6},0]
["4.1.4","3.5m leg",812,"kg","No.",{"$f":"[7]Towers!F10","v":11},{"$nulls":6},0]
["4.1.5","4.0m leg",866.7,"kg","No.",{"$f":"[7]Towers!F11","v":11},{"$nulls":6},{"$f":"F110*L110","v":0}]
["4.1.6","4.5m leg",973.4,"kg","No.",{"$f":"[7]Towers!F12","v":11},{"$nulls":6},0]
["4.1.7","5.0m leg",1019.7,"kg","No.",{"$f":"[7]Towers!F13","v":11},{"$nulls":6},0]
["4.1.8","5.5m leg",1090.8,"kg","No.",{"$f":"[7]Towers!F14","v":11},{"$nulls":6},0]
["4.1.9","6.0m leg",1159.6,"kg","No.",{"$f":"[7]Towers!F15","v":11},{"$nulls":6},0]
["4.1.10","6.5m leg",1212,"kg","No.",{"$f":"[7]Towers!F16","v":11},{"$nulls":6},0]
["4.1.11","7.0m leg",1268.2,"kg","No.",{"$f":"[7]Towers!F17","v":11},{"$nulls":6},0]
["4.1.12","7.5m leg",1371.7,"kg","No.",{"$f":"[7]Towers!F18","v":11},{"$nulls":6},0]
["4.1.13","8.0m leg",1426,"kg","No.",{"$f":"[7]Towers!F19","v":11},{"$nulls":6},0]
["4.1.14","8.5m leg",1487,"kg","No.",{"$f":"[7]Towers!F20","v":11},{"$nulls":6},0]
["4.1.15","9.0m leg",1609,"kg","No.",{"$f":"[7]Towers!F21","v":11},{"$nulls":6},0]
["4.1.16","9.5m leg",1672,"kg","No.",{"$f":"[7]Towers!F22","v":11},{"$nulls":6},0]
["4.1.17","10.0m leg",1730,"kg","No.",{"$f":"[7]Towers!F23","v":11},{"$nulls":6},0]
["4.1.18","10.5m leg",1894.5,"kg","No.",{"$f":"[7]Towers!F24","v":11},{"$nulls":6},0]
["4.1.19","11.0m leg",1953,"kg","No.",{"$f":"[7]Towers!F25","v":11},{"$nulls":6},0]
["4.1.20","11.5m leg",2013,"kg","No.",{"$f":"[7]Towers!F26","v":11},{"$nulls":6},0]
["4.1.21","12.0m leg",2074.6,"kg","No.",{"$f":"[7]Towers!F27","v":11},{"$nulls":6},0]
[4.2,"Self Supporting Suspension - All Types"]
["4.2.1","Body and superstructure ",{"v":8515.2,"d":"8515.20"},"kg","No.",{"$f":"[7]Towers!F29","v":11},{"$nulls":6},{"$f":"F128*L128","v":0}]
["4.2.2","6m body extension ",3276.2,"kg","No.",{"$f":"[7]Towers!F30","v":11},{"$nulls":6},{"$f":"F129*L129","v":0}]
["4.2.3","3.0m leg",336.3,"kg","No.",{"$f":"[7]Towers!F31","v":11},{"$nulls":6},{"$f":"F130*L130","v":0}]
["4.2.4","3.5m leg",352,"kg","No.",{"$f":"[7]Towers!F32","v":11},{"$nulls":6},0]
["4.2.5","4.0m leg",395,"kg","No.",{"$f":"[7]Towers!F33","v":11},{"$nulls":6},0]
["4.2.6","4.5m leg",416,"kg","No.",{"$f":"[7]Towers!F34","v":11},{"$nulls":6},0]
["4.2.7","5.0m leg",435,"kg","No.",{"$f":"[7]Towers!F35","v":11},{"$nulls":6},0]
["4.2.8","5.5m leg",451,"kg","No.",{"$f":"[7]Towers!F36","v":11},{"$nulls":6},0]
["4.2.9","6.0m leg",475,"kg","No.",{"$f":"[7]Towers!F37","v":11},{"$nulls":6},0]
["4.2.10","6.5m leg",559,"kg","No.",{"$f":"[7]Towers!F38","v":11},{"$nulls":6},0]
["4.2.11","7.0m leg",597,"kg","No.",{"$f":"[7]Towers!F39","v":11},{"$nulls":6},0]
["4.2.12","7.5m leg",616,"kg","No.",{"$f":"[7]Towers!F40","v":11},{"$nulls":6},0]
["4.2.13","8.0m leg",640,"kg","No.",{"$f":"[7]Towers!F41","v":11},{"$nulls":6},0]
["4.2.14","8.5m leg",671,"kg","No.",{"$f":"[7]Towers!F42","v":11},{"$nulls":6},0]
["4.2.15","9.0m leg",730,"kg","No.",{"$f":"[7]Towers!F43","v":11},{"$nulls":6},0]
["4.2.16","9.5m leg",746,"kg","No.",{"$f":"[7]Towers!F44","v":11},{"$nulls":6},0]
["4.2.17","10.0m leg",765,"kg","No.",{"$f":"[7]Towers!F45","v":11},{"$nulls":6},0]
["4.2.18","10.5m leg",773,"kg","No.",{"$f":"[7]Towers!F46","v":11},{"$nulls":6},0]
["4.2.19","11.0m leg",790,"kg","No.",{"$f":"[7]Towers!F47","v":11},{"$nulls":6},{"$f":"F146*L146","v":0}]
["4.2.20","11.5m leg",838,"kg","No.",{"$f":"[7]Towers!F48","v":11},{"$nulls":6},{"$f":"F147*L147","v":0}]
["4.2.21","12.0m leg",867,"kg","No.",{"$f":"[7]Towers!F49","v":11},{"$nulls":6},{"$f":"F148*L148","v":0}]
[null,"Cross-rope Suspension Towers - All Types"]
[4.3,"Single lattice type masts (2 masts per tower - 2 guys per mast - 1 spacer rope per tower - 1 cross-rope per tower). Tower lifting method will be specified under the Works Information"]
["4.3.1","27.2.m long Attachment height 18m",3203.06,"kg","No.",{"$f":"[7]Towers!F52","v":11},{"$nulls":6},{"$f":"F151*L151","v":0}]
["4.3.2","28.7m long Attachment height 19.5m ",3436.3,"kg","No.",{"$f":"[7]Towers!F53","v":11},{"$nulls":6},{"$f":"F152*L152","v":0}]
["4.3.3","30.2m long Attachment height 21.0m ",3584.2599999999998,"kg","No.",{"$f":"[7]Towers!F54","v":11},{"$nulls":6},0]
["4.3.4","31.7m long Attachment height 22.5m ",3732.22,"kg","No.",{"$f":"[7]Towers!F55","v":11},{"$nulls":6},0]
["4.3.5","33.2m long Attachment height 24m ",3880.18,"kg","No.",{"$f":"[7]Towers!F56","v":11},{"$nulls":6},0]
["4.3.6","34.7m long Attachment height 25.5m ",4028.14,"kg","No.",{"$f":"[7]Towers!F57","v":11},{"$nulls":6},0]
["4.3.7","36.2m long Attachment height 27m ",4261.38,"kg","No.",{"$f":"[7]Towers!F58","v":11},{"$nulls":6},0]
["4.3.8","37.7m long Attachment height 28.5m ",4409.34,"kg","No.",{"$f":"[7]Towers!F59","v":11},{"$nulls":6},0]
["4.3.9","39.2m long Attachment height 30m ",4557.3,"kg","No.",{"$f":"[7]Towers!F60","v":11},{"$nulls":6},0]
["4.3.10","40.7m long Attachment height 31.5m ",4705.26,"kg","No.",{"$f":"[7]Towers!F61","v":11},{"$nulls":6},0]
["4.3.11","42.2m long Attachment height 33m ",4853.22,"kg","No.",{"$f":"[7]Towers!F62","v":11},{"$nulls":6},0]
[null,"Guyed \"V\" Suspension Towers - All Types"]
[4.4,"Lattice type tower (4 guys per tower). Tower lifting method will be specified under the Works Information"]
["4.4.1","18.0m Conductor Attachment Height",6395,"kg","No.",{"$f":"[7]Towers!F65","v":11},{"$nulls":6},{"$f":"F164*L164","v":0}]
["4.4.2","19.5m Conductor Attachment Height",6635,"kg","No.",{"$f":"[7]Towers!F66","v":11},{"$nulls":6},{"$f":"F165*L165","v":0}]
["4.4.3","21.0m Conductor Attachment Height",6813,"kg","No.",{"$f":"[7]Towers!F67","v":11},{"$nulls":6},0]
["4.4.4","22.5m Conductor Attachment Height",6992,"kg","No.",{"$f":"[7]Towers!F68","v":11},{"$nulls":6},0]
["4.4.5","24.0m Conductor Attachment Height",7171,"kg","No.",{"$f":"[7]Towers!F69","v":11},{"$nulls":6},0]
["4.4.6","25.5m Conductor Attachment Height",7350,"kg","No.",{"$f":"[7]Towers!F70","v":11},{"$nulls":6},0]
["4.4.7","27.0m Conductor Attachment Height",7593,"kg","No.",{"$f":"[7]Towers!F71","v":11},{"$nulls":6},0]
["4.4.8","28.5m Conductor Attachment Height",7775,"kg","No.",{"$f":"[7]Towers!F72","v":11},{"$nulls":6},0]
["4.4.9","30.0m Conductor Attachment Height",7958,"kg","No.",{"$f":"[7]Towers!F73","v":11},{"$nulls":6},0]
["4.4.10","31.5m Conductor Attachment Height",8141,"kg","No.",{"$f":"[7]Towers!F74","v":11},{"$nulls":6},0]
["4.4.11","33.0m Conductor Attachment Height",8323,"kg","No.",{"$f":"[7]Towers!F75","v":11},{"$nulls":6},0]
[null,"Cross-rope Angle Strain 0° - 15° - All Types"]
[4.5,"Single lattice type masts (2 masts per tower - 2 guys per mast - 1 spacer rope per tower - 1 cross-rope per tower). Tower lifting method will be specified under the Works Information"]
["4.5.1","17.0m   Conductor Attachment Height",3092,"kg","No.",{"$f":"[7]Towers!F78","v":11},{"$nulls":6},{"$f":"F177*L177","v":0}]
["4.5.2","18.50m   Conductor Attachment Height",3360,"kg","No.",{"$f":"[7]Towers!F79","v":11},{"$nulls":6},{"$f":"F178*L178","v":0}]
["4.5.3","20.0m  Conductor Attachment Height",3488,"kg","No.",{"$f":"[7]Towers!F80","v":11},{"$nulls":6},{"$f":"F179*L179","v":0}]
["4.5.4","21.5m   Conductor Attachment Height",3620,"kg","No.",{"$f":"[7]Towers!F81","v":11},{"$nulls":6},0]
["4.5.5","23.0m   Conductor Attachment Height",3752,"kg","No.",{"$f":"[7]Towers!F82","v":11},{"$nulls":6},0]
["4.5.6","24.50m   Conductor Attachment Height",3882,"kg","No.",{"$f":"[7]Towers!F83","v":11},{"$nulls":6},0]
["4.5.7","26.0m   Conductor Attachment Height",4016,"kg","No.",{"$f":"[7]Towers!F84","v":11},{"$nulls":6},0]
["4.5.8","27.50m   Conductor Attachment Height",4280,"kg","No.",{"$f":"[7]Towers!F85","v":11},{"$nulls":6},0]
["4.5.9","29.0m  Conductor Attachment Height",4410,"kg","No.",{"$f":"[7]Towers!F86","v":11},{"$nulls":6},0]
["4.5.10","30.5m   Conductor Attachment Height",4542,"kg","No.",{"$f":"[7]Towers!F87","v":11},{"$nulls":6},0]
["4.5.11","32.0m  Conductor Attachment Height",4672,"kg","No.",{"$f":"[7]Towers!F88","v":11},{"$nulls":6},0]
[null,"Guyed Single Mast Angle Strain 15° - 30° - All Types"]
[4.6,"Lattice type tower (4 guys per tower). Tower lifting method will be specified under the Works Information"]
["4.6.1","18.0m   Conductor Attachment Height",6856,"kg","No.",{"$f":"[7]Towers!F91","v":11},{"$nulls":6},{"$f":"F190*L190","v":0}]
["4.6.2","20.00m   Conductor Attachment Height",7194,"kg","No.",{"$f":"[7]Towers!F92","v":11},{"$nulls":6},{"$f":"F191*L191","v":0}]
["4.6.3","21.5m  Conductor Attachment Height",7398,"kg","No.",{"$f":"[7]Towers!F93","v":11},{"$nulls":6},0]
["4.6.4","23.0m   Conductor Attachment Height",7602,"kg","No.",{"$f":"[7]Towers!F94","v":11},{"$nulls":6},0]
["4.6.5","24.5m   Conductor Attachment Height",7806,"kg","No.",{"$f":"[7]Towers!F95","v":11},{"$nulls":6},0]
["4.6.6","26.00m   Conductor Attachment Height",8144,"kg","No.",{"$f":"[7]Towers!F96","v":11},{"$nulls":6},0]
["4.6.7","27.5m   Conductor Attachment Height",8348,"kg","No.",{"$f":"[7]Towers!F97","v":11},{"$nulls":6},0]
["4.6.8","29.50m   Conductor Attachment Height",8552,"kg","No.",{"$f":"[7]Towers!F98","v":11},{"$nulls":6},0]
["4.6.9","30.5m  Conductor Attachment Height",8756,"kg","No.",{"$f":"[7]Towers!F99","v":11},{"$nulls":6},0]
[4.7,"Self Supporting Angle Strain 0° Terminal - All Types"]
["4.7.1","Body and superstructure ",17213.17,"kg","No.",{"$f":"[7]Towers!F101","v":11},{"$nulls":6},{"$f":"F200*L200","v":0}]
["4.7.2","6m body extension ",5200.88,"kg","No.",{"$f":"[7]Towers!F102","v":11},{"$nulls":6},{"$f":"F201*L201","v":0}]
["4.7.3","3.0m leg",667,"kg","No.",{"$f":"[7]Towers!F103","v":11},{"$nulls":6},0]
["4.7.4","3.5m leg",728,"kg","No.",{"$f":"[7]Towers!F104","v":11},{"$nulls":6},0]
["4.7.5","4.0m leg",753,"kg","No.",{"$f":"[7]Towers!F105","v":11},{"$nulls":6},0]
["4.7.6","4.5m leg",848,"kg","No.",{"$f":"[7]Towers!F106","v":11},{"$nulls":6},0]
["4.7.7","5.0m leg",884,"kg","No.",{"$f":"[7]Towers!F107","v":11},{"$nulls":6},0]
["4.7.8","5.5m leg",934,"kg","No.",{"$f":"[7]Towers!F108","v":11},{"$nulls":6},0]
["4.7.9","6.0m leg",981,"kg","No.",{"$f":"[7]Towers!F109","v":11},{"$nulls":6},0]
["4.7.10","6.5m leg",1053,"kg","No.",{"$f":"[7]Towers!F110","v":11},{"$nulls":6},0]
["4.7.11","7.0m leg",1095,"kg","No.",{"$f":"[7]Towers!F111","v":11},{"$nulls":6},0]
["4.7.12","7.5m leg",1150,"kg","No.",{"$f":"[7]Towers!F112","v":11},{"$nulls":6},0]
["4.7.13","8.0m leg",1205,"kg","No.",{"$f":"[7]Towers!F113","v":11},{"$nulls":6},0]
["4.7.14","8.5m leg",1253,"kg","No.",{"$f":"[7]Towers!F114","v":11},{"$nulls":6},0]
["4.7.15","9.0m leg",1346,"kg","No.",{"$f":"[7]Towers!F115","v":11},{"$nulls":6},0]
["4.7.16","9.5m leg",1417,"kg","No.",{"$f":"[7]Towers!F116","v":11},{"$nulls":6},0]
["4.7.17","10.0m leg",1466,"kg","No.",{"$f":"[7]Towers!F117","v":11},{"$nulls":6},0]
["4.7.18","10.5m leg",1519,"kg","No.",{"$f":"[7]Towers!F118","v":11},{"$nulls":6},0]
["4.7.19","11.0m leg",1636,"kg","No.",{"$f":"[7]Towers!F119","v":11},{"$nulls":6},0]
["4.7.20","11.5m leg",1686,"kg","No.",{"$f":"[7]Towers!F120","v":11},{"$nulls":6},0]
["4.7.21","12.0m leg",1935,"kg","No.",{"$f":"[7]Towers!F121","v":11},{"$nulls":6},0]
[4.8,"Cross-rope Suspension Towers -All Types"]
[null,"Single lattice type masts (2 masts per tower - 2 guys per mast - 1 spacer rope per tower - 1 cross-rope per tower). Tower lifting method will be specified under the Works Information"]
["4.8.1","46.3m long Attachment height 30.631m",10328.52,"kg","No.",{"$f":"[7]Towers!F124","v":11},{"$nulls":6},{"$f":"F223*L223","v":0}]
["4.8.2","48.3m long Attachment height 32.592m ",10740.52,"kg","No.",{"$f":"[7]Towers!F125","v":11},{"$nulls":6},{"$f":"F224*L224","v":0}]
["4.8.3","50.3m long Attachment height 34.553m ",11154.52,"kg","No.",{"$f":"[7]Towers!F126","v":11},{"$nulls":6},0]
["4.8.4","52.3m long Attachment height 36.514m ",11568.52,"kg","No.",{"$f":"[7]Towers!F127","v":11},{"$nulls":6},0]
["4.8.5","54.3m long Attachment height 38.475m ",11980.96,"kg","No.",{"$f":"[7]Towers!F128","v":11},{"$nulls":6},{"$f":"F227*L227","v":0}]
[4.9,"ALTERNATIVE CONSTRUCTION METHODS"]
[null,"(used where vehicular access is impossible or prohibited on the Project Manager's agreement/instruction)"]
["4.9.1","Extra over for hand erection of tower steel (Gin Pole).",null,null,"t",{"$f":"[7]Towers!F131","v":13},{"$nulls":6},{"$f":"F230*L230","v":0}]
[{"v":4.1,"d":"4.10"},"WEEKEND WORK"]
["4.10.1","Saturday and Public Holiday work by erection and assembly  team on the Project Manager's instruction  (team per day)",null,null,"No.",{"$f":"[7]Towers!F133","v":7},{"$nulls":6},{"$f":"F232*L232","v":0}]
["4.10.2","Sunday and Public Holiday work by erection and assembly team on the Project Manager's instruction  (team per day)",null,null,"No.",{"$f":"[7]Towers!F134","v":7},{"$nulls":6},0]
["4.11","RELOCATION"]
["4.11.1","Relocation of assembly and erection teams and equipment necessary for out of sequence work due to instruction by the Employer( per move).",null,null,"No.",{"$f":"[7]Towers!F136","v":9},{"$nulls":6},{"$f":"F235*L235","v":0}]
[{"$nulls":12},{"$f":"F236*L236","v":0}]
[]
[4.12,"DISMANTLING OF TOWERS"]
["4.12.1","All Types",null,null,"No.",{"$f":"[7]Towers!F140","v":11},{"$nulls":6},0]
[{"$nulls":11},"Carried forward to Bill No.7 - SUMMARY ",{"$f":"SUM(M106:M239)","v":{"v":0,"d":"R 0.00"}}]
[]
[]
[]
["ESKOM ROTEK INDUSTRIES - CONSTRUCTION SERVICES - POWERLINES DIVISION"]
["SUMMARY "]
["BILL No.","DESCRIPTION",{"$nulls":9},"TOTAL"]
[]
["1","PRELIMINARY AND GENERAL",{"$nulls":9},{"$f":"I75","v":0}]
[]
["2","SHEQ",{"$nulls":9},{"$f":"I98","v":0}]
[]
["4","SUPPLY AND ERECTION OF TOWERS",{"$nulls":9},{"$f":"M240","v":0}]
[]
[]
[{"$nulls":11},{"$f":"SUM(L247:M254)","v":0}]
[]
[]
[null,"FOR ERI:                          ","FOR SERVICE PROVIDER: "]
[null,"BOQ Compiled by: ","Pricing Done By:"]
[null,"Name:  __________________________________   ","Name:                 _____________________________________"]
[null,"Job Title: ________________________________","Job Title:              ______________________________________"]
[null,"Signature: ________________________________________","Signature:           ______________________________________"]
[]
[null,"BOQ Compilation supported By","Pricing Approved By"]
[null,"Name:                 _____________________________________","Name:                 _____________________________________"]
[null,"Job Title:              ______________________________________","Job Title:              ______________________________________"]
[null,"Signature:           ______________________________________","Signature:           ______________________________________"]